[Event "*** Titled Tuesday Blitz"]
[Site "Chess.com"]
[Date "2021.04.20"]
[Round "2"]
[White "azikom"]
[Black "ShahMatKanal"]
[Result "1-0"]
[WhiteElo "2657"]
[BlackElo "2388"]
[TimeControl "180+1"]
[EndTime "10:17:30 PDT"]
[Termination "azikom won on time"]

1. c4 {[%clk 0:03:00]} 1... e6 {[%clk 0:02:51.7]} 2. Nc3 {[%clk 0:03:00.9]} 2...
d5 {[%clk 0:02:48.8]} 3. e3 {[%clk 0:03:00.9]} 3... c6 {[%clk 0:02:46.3]} 4. d4
{[%clk 0:02:59.1]} 4... f5 {[%clk 0:02:41.9]} 5. Bd3 {[%clk 0:02:57.7]} 5... Nf6
{[%clk 0:02:41.1]} 6. Nge2 {[%clk 0:02:58]} 6... Bd6 {[%clk 0:02:40.2]} 7. f3
{[%clk 0:02:55.2]} 7... O-O {[%clk 0:02:26.3]} 8. O-O {[%clk 0:02:54.2]} 8...
Qc7 {[%clk 0:02:17.1]} 9. h3 {[%clk 0:02:53.8]} 9... Kh8 {[%clk 0:02:08]} 10.
Qc2 {[%clk 0:02:51.5]} 10... dxc4 {[%clk 0:02:04.3]} 11. Bxc4 {[%clk 0:02:51.1]}
11... e5 {[%clk 0:02:04.7]} 12. a3 {[%clk 0:02:43.3]} 12... Nbd7 {[%clk
0:01:36.5]} 13. Ba2 {[%clk 0:02:41.8]} 13... Nb6 {[%clk 0:01:33.5]} 14. Bd2
{[%clk 0:02:36.8]} 14... Bd7 {[%clk 0:01:30]} 15. Rad1 {[%clk 0:02:25.9]} 15...
Rae8 {[%clk 0:01:28.9]} 16. Bc1 {[%clk 0:02:23.9]} 16... exd4 {[%clk 0:01:16.4]}
17. Nxd4 {[%clk 0:02:20.1]} 17... Nh5 {[%clk 0:01:08.6]} 18. Nde2 {[%clk
0:01:54.5]} 18... Bc8 {[%clk 0:00:57.9]} 19. g4 {[%clk 0:01:38.3]} 19... fxg4
{[%clk 0:00:48.3]} 20. hxg4 {[%clk 0:01:38.4]} 20... Qe7 {[%clk 0:00:35.6]} 21.
Ne4 {[%clk 0:01:30.9]} 21... Be5 {[%clk 0:00:23.2]} 22. gxh5 {[%clk 0:01:26.3]}
22... Qh4 {[%clk 0:00:23.1]} 23. Nf4 {[%clk 0:01:26]} 23... Bxf4 {[%clk
0:00:06.5]} 24. exf4 {[%clk 0:01:25.6]} 24... Qxh5 {[%clk 0:00:06.9]} 25. Qh2
{[%clk 0:01:25.2]} 25... Qxh2+ {[%clk 0:00:03.9]} 26. Kxh2 {[%clk 0:01:24.6]}
26... Nd5 {[%clk 0:00:04.6]} 27. Kg3 {[%clk 0:01:23.3]} 27... Bf5 {[%clk
0:00:03.2]} 28. Rfe1 {[%clk 0:01:22.1]} 28... h6 {[%clk 0:00:02.5]} 29. Bxd5
{[%clk 0:01:21.1]} 29... cxd5 {[%clk 0:00:03.4]} 30. Rxd5 {[%clk 0:01:21.6]}
30... Rc8 {[%clk 0:00:03.7]} 31. Rc5 {[%clk 0:01:13.6]} 31... Rcd8 {[%clk
0:00:03.2]} 32. Rc3 {[%clk 0:01:11.2]} 32... b6 {[%clk 0:00:03.1]} 33. b4 {[%clk
0:01:09.6]} 33... Bh7 {[%clk 0:00:03.2]} 34. Rce3 {[%clk 0:01:08.2]} 34... a5
{[%clk 0:00:03.5]} 35. bxa5 {[%clk 0:01:07.8]} 35... bxa5 {[%clk 0:00:04.4]} 36.
Bb2 {[%clk 0:01:08.3]} 36... a4 {[%clk 0:00:04.4]} 37. Be5 {[%clk 0:01:07.8]}
37... Rc8 {[%clk 0:00:02.8]} 38. Rc3 {[%clk 0:01:05.4]} 38... Rxc3 {[%clk
0:00:03]} 39. Nxc3 {[%clk 0:01:03.6]} 39... Rc8 {[%clk 0:00:02.6]} 40. Nxa4
{[%clk 0:01:01.2]} 40... Bg8 {[%clk 0:00:02.2]} 41. Nc3 {[%clk 0:00:59.6]} 41...
Ra8 {[%clk 0:00:02.4]} 42. a4 {[%clk 0:00:59.2]} 42... Bb3 {[%clk 0:00:02.9]}
43. Rb1 {[%clk 0:00:58.5]} 43... Bxa4 {[%clk 0:00:02]} 44. Nxa4 {[%clk
0:00:58.2]} 44... Rxa4 {[%clk 0:00:01.6]} 45. Rb8+ {[%clk 0:00:58.3]} 45... Kh7
{[%clk 0:00:01.4]} 46. Rb7 {[%clk 0:00:59.2]} 46... h5 {[%clk 0:00:01.6]} 47.
Rxg7+ {[%clk 0:00:57.9]} 47... Kh6 {[%clk 0:00:02.1]} 48. Rg8 {[%clk 0:00:57]}
48... Ra7 {[%clk 0:00:02]} 49. Rh8+ {[%clk 0:00:56.3]} 49... Kg6 {[%clk
0:00:01.8]} 50. Rf8 {[%clk 0:00:56.5]} 1-0

[Event "*** Titled Tuesday Blitz"]
[Site "Chess.com"]
[Date "2021.04.20"]
[Round "2"]
[White "MikeSailer"]
[Black "Taktikmonster"]
[Result "0-1"]
[WhiteElo "2169"]
[BlackElo "2417"]
[TimeControl "180+1"]
[EndTime "10:17:36 PDT"]
[Termination "Taktikmonster won by checkmate"]

1. d4 {[%clk 0:03:00.4]} 1... Nf6 {[%clk 0:02:56]} 2. Nf3 {[%clk 0:03:01.1]}
2... e6 {[%clk 0:02:54.4]} 3. Bf4 {[%clk 0:03:01.5]} 3... c5 {[%clk 0:02:53]} 4.
e3 {[%clk 0:03:01.9]} 4... b6 {[%clk 0:02:53.2]} 5. Be2 {[%clk 0:03:00.7]} 5...
Bb7 {[%clk 0:02:53.5]} 6. O-O {[%clk 0:03:00.9]} 6... Be7 {[%clk 0:02:53.5]} 7.
c4 {[%clk 0:03:01.7]} 7... O-O {[%clk 0:02:50.7]} 8. Nc3 {[%clk 0:03:02]} 8...
cxd4 {[%clk 0:02:45.6]} 9. exd4 {[%clk 0:03:02.1]} 9... d6 {[%clk 0:02:46.2]}
10. a4 {[%clk 0:03:01.7]} 10... Nc6 {[%clk 0:02:43.8]} 11. h3 {[%clk 0:03:00.2]}
11... Re8 {[%clk 0:01:56.3]} 12. Re1 {[%clk 0:02:54.3]} 12... h6 {[%clk
0:01:53.5]} 13. d5 {[%clk 0:02:53.7]} 13... exd5 {[%clk 0:01:50.5]} 14. cxd5
{[%clk 0:02:52.7]} 14... Nb4 {[%clk 0:01:46]} 15. Bc4 {[%clk 0:02:42.9]} 15...
Rc8 {[%clk 0:01:43]} 16. Bb3 {[%clk 0:02:32.4]} 16... Bf8 {[%clk 0:01:35.1]} 17.
Rxe8 {[%clk 0:02:25.9]} 17... Qxe8 {[%clk 0:01:36]} 18. a5 {[%clk 0:02:22.8]}
18... Ne4 {[%clk 0:01:11.3]} 19. axb6 {[%clk 0:02:12.3]} 19... axb6 {[%clk
0:01:07.6]} 20. Nb5 {[%clk 0:02:00.2]} 20... Qxb5 {[%clk 0:01:03.7]} 21. Qd4
{[%clk 0:01:19.4]} 21... Nf6 {[%clk 0:00:39.3]} 22. Ba4 {[%clk 0:01:06.1]} 22...
Qc4 {[%clk 0:00:34.4]} 23. Qxb6 {[%clk 0:01:06.2]} 23... Qxf4 {[%clk 0:00:17.8]}
24. Qxb7 {[%clk 0:01:05.6]} 24... Rc1+ {[%clk 0:00:17.1]} 25. Rxc1 {[%clk
0:01:02.9]} 25... Qxc1+ {[%clk 0:00:18]} 26. Kh2 {[%clk 0:01:02.2]} 26... Qxb2
{[%clk 0:00:16.3]} 27. Bc6 {[%clk 0:00:32.2]} 27... Qc3 {[%clk 0:00:13.3]} 28.
Qa8 {[%clk 0:00:27]} 28... Qc5 {[%clk 0:00:09.8]} 29. Kg1 {[%clk 0:00:14.1]}
29... Nbxd5 {[%clk 0:00:09.6]} 30. Nh4 {[%clk 0:00:10.2]} 30... Nf4 {[%clk
0:00:06.4]} 31. g3 {[%clk 0:00:06.1]} 31... Nxh3+ {[%clk 0:00:04.3]} 32. Kh2
{[%clk 0:00:06.8]} 32... Nxf2 {[%clk 0:00:03.1]} 33. Nf5 {[%clk 0:00:07.3]}
33... N2g4+ {[%clk 0:00:03.2]} 34. Kh3 {[%clk 0:00:07.5]} 34... Qxf5 {[%clk
0:00:04.1]} 35. Be4 {[%clk 0:00:07]} 35... Qh5+ {[%clk 0:00:04.2]} 36. Kg2
{[%clk 0:00:07.1]} 36... Qh2+ {[%clk 0:00:04.9]} 37. Kf3 {[%clk 0:00:07.4]}
37... Qf2# {[%clk 0:00:05.1]} 0-1

[Event "*** Titled Tuesday Blitz"]
[Site "Chess.com"]
[Date "2021.04.20"]
[Round "2"]
[White "stanyga"]
[Black "A-S-00"]
[Result "1-0"]
[WhiteElo "2619"]
[BlackElo "2330"]
[TimeControl "180+1"]
[EndTime "10:17:38 PDT"]
[Termination "stanyga won on time"]

1. e4 {[%clk 0:02:59.4]} 1... c5 {[%clk 0:02:55.7]} 2. Nf3 {[%clk 0:02:54.9]}
2... Nc6 {[%clk 0:02:54.4]} 3. d4 {[%clk 0:02:54.6]} 3... cxd4 {[%clk
0:02:52.6]} 4. Nxd4 {[%clk 0:02:55.5]} 4... Nf6 {[%clk 0:02:51.1]} 5. Nc3 {[%clk
0:02:54.7]} 5... e6 {[%clk 0:02:49.8]} 6. Nxc6 {[%clk 0:02:52.5]} 6... bxc6
{[%clk 0:02:49.4]} 7. e5 {[%clk 0:02:53.1]} 7... Nd5 {[%clk 0:02:49.2]} 8. Ne4
{[%clk 0:02:53.4]} 8... Qc7 {[%clk 0:02:49.6]} 9. f4 {[%clk 0:02:53.5]} 9... Qb6
{[%clk 0:02:48.6]} 10. c4 {[%clk 0:02:49.5]} 10... Ne3 {[%clk 0:02:45.4]} 11.
Qd3 {[%clk 0:02:36.9]} 11... Bb4+ {[%clk 0:02:42.6]} 12. Ke2 {[%clk 0:02:36.5]}
12... Nxc4 {[%clk 0:02:16.1]} 13. Kf3 {[%clk 0:02:14.3]} 13... Ba6 {[%clk
0:01:58.5]} 14. Qc2 {[%clk 0:01:58.3]} 14... d5 {[%clk 0:01:17.9]} 15. exd6
{[%clk 0:01:53.9]} 15... Nxd6 {[%clk 0:01:16.3]} 16. Be3 {[%clk 0:01:50.2]}
16... Qb7 {[%clk 0:01:06.9]} 17. Bxa6 {[%clk 0:01:03.3]} 17... Qxa6 {[%clk
0:01:05.1]} 18. Nc5 {[%clk 0:01:02.4]} 18... Qc4 {[%clk 0:00:48.1]} 19. Qxc4
{[%clk 0:00:42.7]} 19... Nxc4 {[%clk 0:00:48.1]} 20. Na6 {[%clk 0:00:35]} 20...
Bd6 {[%clk 0:00:16.4]} 21. Bd4 {[%clk 0:00:34.1]} 21... O-O {[%clk 0:00:14.5]}
22. Rac1 {[%clk 0:00:33.4]} 22... Na5 {[%clk 0:00:08.9]} 23. b4 {[%clk
0:00:32.9]} 23... Nb7 {[%clk 0:00:07.8]} 24. Rxc6 {[%clk 0:00:32.9]} 24... Rac8
{[%clk 0:00:08.2]} 25. Rhc1 {[%clk 0:00:32.4]} 25... Rcd8 {[%clk 0:00:07.5]} 26.
Bxa7 {[%clk 0:00:29.6]} 26... g6 {[%clk 0:00:05.3]} 27. Bb6 {[%clk 0:00:24.4]}
27... Rd7 {[%clk 0:00:04.3]} 28. b5 {[%clk 0:00:23.3]} 28... e5 {[%clk
0:00:04.3]} 29. fxe5 {[%clk 0:00:22.5]} 29... Bxe5 {[%clk 0:00:04.6]} 30. Rc8
{[%clk 0:00:21.9]} 30... Rxc8 {[%clk 0:00:02.6]} 31. Rxc8+ {[%clk 0:00:21.6]}
31... Kg7 {[%clk 0:00:03.2]} 32. a4 {[%clk 0:00:14.7]} 32... Nd6 {[%clk
0:00:01.4]} 33. Nc5 {[%clk 0:00:11.5]} 1-0

[Event "*** Titled Tuesday Blitz"]
[Site "Chess.com"]
[Date "2021.04.20"]
[Round "2"]
[White "bazar-wokzal"]
[Black "zmeeed67"]
[Result "1/2-1/2"]
[WhiteElo "2703"]
[BlackElo "2491"]
[TimeControl "180+1"]
[EndTime "10:17:41 PDT"]
[Termination "Game drawn by repetition"]

1. e4 {[%clk 0:03:00.9]} 1... c5 {[%clk 0:02:59.7]} 2. c3 {[%clk 0:03:00.8]}
2... Nf6 {[%clk 0:02:53.1]} 3. e5 {[%clk 0:03:00.7]} 3... Nd5 {[%clk 0:02:53.4]}
4. d4 {[%clk 0:03:00.8]} 4... cxd4 {[%clk 0:02:53.7]} 5. cxd4 {[%clk 0:03:00.9]}
5... e6 {[%clk 0:02:54]} 6. Nc3 {[%clk 0:03:00.6]} 6... Nxc3 {[%clk 0:02:41.4]}
7. bxc3 {[%clk 0:03:00.5]} 7... d6 {[%clk 0:02:41.9]} 8. f4 {[%clk 0:03:00.2]}
8... Nd7 {[%clk 0:02:27.4]} 9. Nf3 {[%clk 0:02:59.5]} 9... b6 {[%clk 0:02:22]}
10. Bd3 {[%clk 0:02:58.1]} 10... Bb7 {[%clk 0:02:22]} 11. O-O {[%clk 0:02:57.9]}
11... Be7 {[%clk 0:02:15]} 12. f5 {[%clk 0:02:57.8]} 12... exf5 {[%clk
0:02:10.3]} 13. Bxf5 {[%clk 0:02:57.4]} 13... dxe5 {[%clk 0:01:39.8]} 14. Bxd7+
{[%clk 0:02:56.7]} 14... Qxd7 {[%clk 0:01:40.2]} 15. Nxe5 {[%clk 0:02:57.4]}
15... Qd5 {[%clk 0:01:40.9]} 16. Qg4 {[%clk 0:02:57]} 16... f6 {[%clk
0:01:09.4]} 17. c4 {[%clk 0:02:45.6]} 17... Qxg2+ {[%clk 0:01:05.6]} 18. Qxg2
{[%clk 0:02:45.3]} 18... Bxg2 {[%clk 0:01:06.5]} 19. Kxg2 {[%clk 0:02:44.3]}
19... fxe5 {[%clk 0:01:07]} 20. Re1 {[%clk 0:02:30.7]} 20... Kf7 {[%clk
0:00:48.9]} 21. Rxe5 {[%clk 0:02:26.6]} 21... Rac8 {[%clk 0:00:37.6]} 22. Bg5
{[%clk 0:02:25.6]} 22... Bf6 {[%clk 0:00:27.2]} 23. Bxf6 {[%clk 0:02:00.7]}
23... gxf6 {[%clk 0:00:27]} 24. Rd5 {[%clk 0:01:58.5]} 24... Rxc4 {[%clk
0:00:26.6]} 25. Rd7+ {[%clk 0:01:57.8]} 25... Ke6 {[%clk 0:00:25.6]} 26. Rxa7
{[%clk 0:01:56.2]} 26... Rxd4 {[%clk 0:00:22.7]} 27. Re1+ {[%clk 0:01:55]} 27...
Kf5 {[%clk 0:00:20.8]} 28. Rb7 {[%clk 0:01:34.7]} 28... Rd2+ {[%clk 0:00:19.2]}
29. Kf3 {[%clk 0:01:28.6]} 29... Ra8 {[%clk 0:00:13.8]} 30. Rxh7 {[%clk
0:01:06.8]} 30... Ra3+ {[%clk 0:00:12.5]} 31. Re3 {[%clk 0:01:06.6]} 31... Rxe3+
{[%clk 0:00:12.7]} 32. Kxe3 {[%clk 0:01:07.1]} 32... Rxa2 {[%clk 0:00:13.6]} 33.
Rb7 {[%clk 0:00:56.7]} 33... Ra3+ {[%clk 0:00:09.7]} 34. Kf2 {[%clk 0:00:56.2]}
34... Rb3 {[%clk 0:00:10.1]} 35. Rf7 {[%clk 0:00:43.6]} 35... b5 {[%clk
0:00:10.2]} 36. h4 {[%clk 0:00:40.8]} 36... b4 {[%clk 0:00:07.7]} 37. h5 {[%clk
0:00:40.8]} 37... Rb2+ {[%clk 0:00:07.6]} 38. Ke3 {[%clk 0:00:32.8]} 38... Rh2
{[%clk 0:00:04.3]} 39. Rb7 {[%clk 0:00:31.5]} 39... Rh3+ {[%clk 0:00:04.5]} 40.
Kf2 {[%clk 0:00:25.4]} 40... Rxh5 {[%clk 0:00:02.4]} 41. Rb5+ {[%clk 0:00:23.1]}
41... Kg6 {[%clk 0:00:02.4]} 42. Rxb4 {[%clk 0:00:23.8]} 42... Rf5+ {[%clk
0:00:03.3]} 43. Kg3 {[%clk 0:00:24]} 43... Rg5+ {[%clk 0:00:04.2]} 44. Kf3
{[%clk 0:00:23.9]} 44... Rf5+ {[%clk 0:00:04.5]} 45. Kg3 {[%clk 0:00:24.4]}
45... Rg5+ {[%clk 0:00:05]} 46. Kf3 {[%clk 0:00:23.7]} 46... Rf5+ {[%clk
0:00:05.4]} 47. Kg3 {[%clk 0:00:24]} 1/2-1/2

[Event "*** Titled Tuesday Blitz"]
[Site "Chess.com"]
[Date "2021.04.20"]
[Round "2"]
[White "Piotrek1979"]
[Black "Joseacorrea"]
[Result "1-0"]
[WhiteElo "2391"]
[BlackElo "2060"]
[TimeControl "180+1"]
[EndTime "10:17:41 PDT"]
[Termination "Piotrek1979 won by resignation"]

1. Nf3 {[%clk 0:03:00.9]} 1... d5 {[%clk 0:02:58.8]} 2. b3 {[%clk 0:02:59.4]}
2... e6 {[%clk 0:02:55.3]} 3. Bb2 {[%clk 0:02:59.1]} 3... f5 {[%clk 0:02:56]} 4.
c4 {[%clk 0:02:54.6]} 4... Nf6 {[%clk 0:02:55.5]} 5. g3 {[%clk 0:02:51.1]} 5...
c6 {[%clk 0:02:55.3]} 6. Bg2 {[%clk 0:02:51.4]} 6... Bd6 {[%clk 0:02:55.3]} 7.
O-O {[%clk 0:02:50.4]} 7... O-O {[%clk 0:02:55.9]} 8. d3 {[%clk 0:02:48.8]} 8...
Nbd7 {[%clk 0:02:55.9]} 9. Nbd2 {[%clk 0:02:40.8]} 9... e5 {[%clk 0:02:54.8]}
10. cxd5 {[%clk 0:02:37.5]} 10... cxd5 {[%clk 0:02:54.2]} 11. e4 {[%clk
0:02:37.7]} 11... fxe4 {[%clk 0:02:40.8]} 12. dxe4 {[%clk 0:02:36.6]} 12... d4
{[%clk 0:02:13]} 13. Nc4 {[%clk 0:02:33.1]} 13... Bb8 {[%clk 0:02:03.6]} 14. Ba3
{[%clk 0:02:14.4]} 14... Re8 {[%clk 0:01:53.4]} 15. Nfd2 {[%clk 0:01:09.9]}
15... b5 {[%clk 0:01:45.9]} 16. Nd6 {[%clk 0:01:08.9]} 16... Bxd6 {[%clk
0:01:37]} 17. Bxd6 {[%clk 0:01:09.8]} 17... Qb6 {[%clk 0:01:37.1]} 18. Ba3
{[%clk 0:01:06.2]} 18... Bb7 {[%clk 0:01:36.3]} 19. Rc1 {[%clk 0:00:48.5]} 19...
Rac8 {[%clk 0:01:26.6]} 20. Qe2 {[%clk 0:00:48.7]} 20... a5 {[%clk 0:00:58.7]}
21. Rxc8 {[%clk 0:00:44]} 21... Rxc8 {[%clk 0:00:57]} 22. Rc1 {[%clk 0:00:44.9]}
22... Rc3 {[%clk 0:00:34.2]} 23. Bb2 {[%clk 0:00:43.6]} 23... Rxc1+ {[%clk
0:00:31.8]} 24. Bxc1 {[%clk 0:00:44.5]} 24... Qc5 {[%clk 0:00:26]} 25. Qd1
{[%clk 0:00:44.3]} 25... h5 {[%clk 0:00:15.4]} 26. Bh3 {[%clk 0:00:39.6]} 26...
g5 {[%clk 0:00:12.8]} 27. Be6+ {[%clk 0:00:37.9]} 27... Kg7 {[%clk 0:00:12]} 28.
h3 {[%clk 0:00:37.3]} 28... Qc7 {[%clk 0:00:08.5]} 29. Nf3 {[%clk 0:00:34]}
29... Bxe4 {[%clk 0:00:07.5]} 30. Nxg5 {[%clk 0:00:33]} 30... Qc2 {[%clk
0:00:06.4]} 31. Qxc2 {[%clk 0:00:22.7]} 31... Bxc2 {[%clk 0:00:07.3]} 32. Bd2
{[%clk 0:00:23.2]} 32... d3 {[%clk 0:00:07.1]} 33. Bxa5 {[%clk 0:00:21.9]} 33...
Nc5 {[%clk 0:00:07.2]} 34. Bf5 {[%clk 0:00:20.2]} 34... d2 {[%clk 0:00:04.7]}
35. Bxc2 {[%clk 0:00:17.7]} 35... e4 {[%clk 0:00:03.9]} 36. Bxd2 {[%clk
0:00:16.8]} 36... Nd3 {[%clk 0:00:03.9]} 37. Bc3 {[%clk 0:00:11.6]} 37... b4
{[%clk 0:00:02.2]} 38. Bxf6+ {[%clk 0:00:11.8]} 38... Kxf6 {[%clk 0:00:01.7]}
39. Nxe4+ {[%clk 0:00:12.7]} 39... Ke5 {[%clk 0:00:02.6]} 40. Bxd3 {[%clk
0:00:13.6]} 40... Kd4 {[%clk 0:00:03.4]} 41. Bb1 {[%clk 0:00:13]} 1-0

[Event "*** Titled Tuesday Blitz"]
[Site "Chess.com"]
[Date "2021.04.20"]
[Round "2"]
[White "MMSANCHEZ"]
[Black "hansen"]
[Result "0-1"]
[WhiteElo "2548"]
[BlackElo "2826"]
[TimeControl "180+1"]
[EndTime "10:17:45 PDT"]
[Termination "hansen won by resignation"]

1. d4 {[%clk 0:03:00.9]} 1... Nf6 {[%clk 0:02:59.7]} 2. c4 {[%clk 0:03:00.7]}
2... e6 {[%clk 0:03:00]} 3. Nf3 {[%clk 0:03:00.4]} 3... d5 {[%clk 0:02:57.3]} 4.
Nc3 {[%clk 0:02:59.2]} 4... Bb4 {[%clk 0:02:56.8]} 5. Qb3 {[%clk 0:02:58.3]}
5... a5 {[%clk 0:02:46.1]} 6. Bg5 {[%clk 0:02:47.8]} 6... c6 {[%clk 0:01:47.4]}
7. e3 {[%clk 0:02:43.8]} 7... h6 {[%clk 0:01:45.5]} 8. Bh4 {[%clk 0:02:42.2]}
8... Nbd7 {[%clk 0:01:43.1]} 9. Bd3 {[%clk 0:02:35.9]} 9... dxc4 {[%clk
0:01:29.2]} 10. Bxc4 {[%clk 0:02:32.4]} 10... b5 {[%clk 0:01:29.4]} 11. Bd3
{[%clk 0:02:31.3]} 11... Nc5 {[%clk 0:01:20.8]} 12. dxc5 {[%clk 0:02:15.8]}
12... Qxd3 {[%clk 0:01:20.8]} 13. Bxf6 {[%clk 0:02:15.3]} 13... gxf6 {[%clk
0:01:19.8]} 14. Rd1 {[%clk 0:02:14.3]} 14... Qc4 {[%clk 0:01:12.8]} 15. Qxc4
{[%clk 0:02:08]} 15... bxc4 {[%clk 0:01:13.7]} 16. O-O {[%clk 0:01:09.1]} 16...
Bxc3 {[%clk 0:00:26.9]} 17. bxc3 {[%clk 0:01:09.1]} 17... Ke7 {[%clk 0:00:27.5]}
18. Rd6 {[%clk 0:00:58.6]} 18... e5 {[%clk 0:00:26.7]} 19. Rxc6 {[%clk
0:00:56.4]} 19... Bd7 {[%clk 0:00:26.9]} 20. Rd6 {[%clk 0:00:41.9]} 20... Rhc8
{[%clk 0:00:26.2]} 21. Rfd1 {[%clk 0:00:42]} 21... Ba4 {[%clk 0:00:25.5]} 22.
R1d2 {[%clk 0:00:35.3]} 22... Rxc5 {[%clk 0:00:24.9]} 23. Nh4 {[%clk 0:00:29.4]}
23... e4 {[%clk 0:00:23]} 24. R6d5 {[%clk 0:00:16.2]} 24... Rxd5 {[%clk
0:00:20.8]} 25. Rxd5 {[%clk 0:00:17.1]} 25... Bd7 {[%clk 0:00:19.5]} 26. Rd4
{[%clk 0:00:11.1]} 26... f5 {[%clk 0:00:18]} 27. Rxc4 {[%clk 0:00:08.3]} 27...
Be6 {[%clk 0:00:18.2]} 28. Rc5 {[%clk 0:00:05]} 28... Kd6 {[%clk 0:00:08.4]} 29.
Rb5 {[%clk 0:00:04.6]} 29... Bd7 {[%clk 0:00:08]} 30. Nxf5+ {[%clk 0:00:04.3]}
30... Kc7 {[%clk 0:00:02.7]} 31. Rc5+ {[%clk 0:00:04.1]} 31... Kb6 {[%clk
0:00:03.1]} 32. Rd5 {[%clk 0:00:04.6]} 32... Be6 {[%clk 0:00:03.4]} 33. Re5
{[%clk 0:00:05.1]} 33... Bxa2 {[%clk 0:00:02.6]} 34. Rxe4 {[%clk 0:00:05.5]}
34... Bb1 {[%clk 0:00:02.2]} 35. Re5 {[%clk 0:00:05.5]} 35... Bxf5 {[%clk
0:00:02.5]} 36. Rxf5 {[%clk 0:00:06.4]} 36... a4 {[%clk 0:00:03.3]} 37. Rd5
{[%clk 0:00:04]} 37... a3 {[%clk 0:00:03.6]} 38. Rd1 {[%clk 0:00:04.9]} 38... a2
{[%clk 0:00:03.8]} 39. Ra1 {[%clk 0:00:05.6]} 39... Kb5 {[%clk 0:00:04.3]} 40.
h4 {[%clk 0:00:05.5]} 40... Kc4 {[%clk 0:00:04.8]} 41. Kh2 {[%clk 0:00:06]}
41... Kxc3 {[%clk 0:00:05.2]} 42. Kg3 {[%clk 0:00:06.5]} 42... Kb2 {[%clk
0:00:05.9]} 43. Rxa2+ {[%clk 0:00:07.1]} 43... Kxa2 {[%clk 0:00:06.4]} 44. Kg4
{[%clk 0:00:07.7]} 44... Rg8+ {[%clk 0:00:06.3]} 45. Kh5 {[%clk 0:00:08.1]}
45... Rxg2 {[%clk 0:00:06.6]} 46. Kxh6 {[%clk 0:00:08.8]} 46... Rxf2 {[%clk
0:00:07.2]} 47. e4 {[%clk 0:00:09.5]} 47... Rf4 {[%clk 0:00:07.1]} 48. e5 {[%clk
0:00:10]} 48... Rxh4+ {[%clk 0:00:06.5]} 49. Kg7 {[%clk 0:00:10.9]} 49... Re4
{[%clk 0:00:07.1]} 50. Kf6 {[%clk 0:00:11.6]} 50... Re2 {[%clk 0:00:07.4]} 51.
Kf5 {[%clk 0:00:11.9]} 51... Kb3 {[%clk 0:00:07.6]} 52. Kf6 {[%clk 0:00:12.8]}
52... Kc4 {[%clk 0:00:08.1]} 0-1

[Event "*** Titled Tuesday Blitz"]
[Site "Chess.com"]
[Date "2021.04.20"]
[Round "2"]
[White "BahadirOzen"]
[Black "ZEN-22"]
[Result "1-0"]
[WhiteElo "2698"]
[BlackElo "2362"]
[TimeControl "180+1"]
[EndTime "10:17:45 PDT"]
[Termination "BahadirOzen won by checkmate"]

1. g3 {[%clk 0:03:00.9]} 1... h5 {[%clk 0:02:58.2]} 2. Nf3 {[%clk 0:03:00.6]}
2... Nc6 {[%clk 0:02:57.2]} 3. d4 {[%clk 0:03:00.2]} 3... d5 {[%clk 0:02:55.9]}
4. Bg2 {[%clk 0:02:59.9]} 4... Bg4 {[%clk 0:02:55.6]} 5. Nbd2 {[%clk 0:02:52.2]}
5... e6 {[%clk 0:02:54.2]} 6. c3 {[%clk 0:02:41.9]} 6... Be7 {[%clk 0:02:50.9]}
7. Qb3 {[%clk 0:02:31.3]} 7... a6 {[%clk 0:02:50.4]} 8. e4 {[%clk 0:02:29.8]}
8... dxe4 {[%clk 0:02:06]} 9. Nxe4 {[%clk 0:02:30.7]} 9... Rb8 {[%clk
0:01:58.1]} 10. O-O {[%clk 0:02:25.6]} 10... h4 {[%clk 0:01:55.4]} 11. Re1
{[%clk 0:02:17.9]} 11... hxg3 {[%clk 0:01:54.7]} 12. fxg3 {[%clk 0:02:07.6]}
12... Nf6 {[%clk 0:01:54.6]} 13. Nxf6+ {[%clk 0:02:07]} 13... gxf6 {[%clk
0:01:46.3]} 14. Bf4 {[%clk 0:02:01.8]} 14... b5 {[%clk 0:01:41.6]} 15. Rad1
{[%clk 0:01:37.2]} 15... Na5 {[%clk 0:01:36.3]} 16. Qc2 {[%clk 0:01:37.4]} 16...
c6 {[%clk 0:01:34.8]} 17. Bxb8 {[%clk 0:01:31.1]} 17... Qxb8 {[%clk 0:01:35.7]}
18. Qe4 {[%clk 0:01:29.6]} 18... Bf5 {[%clk 0:01:31.7]} 19. Qe2 {[%clk
0:01:30.1]} 19... Qc7 {[%clk 0:01:30.7]} 20. Nh4 {[%clk 0:01:28.8]} 20... Bh7
{[%clk 0:01:29.5]} 21. b3 {[%clk 0:01:21.4]} 21... Nb7 {[%clk 0:01:27.5]} 22. c4
{[%clk 0:01:15.2]} 22... bxc4 {[%clk 0:01:23.4]} 23. bxc4 {[%clk 0:01:15.3]}
23... Nd8 {[%clk 0:01:22.5]} 24. d5 {[%clk 0:01:14]} 24... cxd5 {[%clk
0:01:20.9]} 25. cxd5 {[%clk 0:01:14.9]} 25... f5 {[%clk 0:00:59.2]} 26. Nf3
{[%clk 0:00:56]} 26... f4 {[%clk 0:00:51.5]} 27. g4 {[%clk 0:00:50.3]} 27...
Bc5+ {[%clk 0:00:51.1]} 28. Kh1 {[%clk 0:00:50.4]} 28... Be3 {[%clk 0:00:51.5]}
29. d6 {[%clk 0:00:48]} 29... Qa7 {[%clk 0:00:46.2]} 30. d7+ {[%clk 0:00:40.9]}
30... Kf8 {[%clk 0:00:46]} 31. Qb2 {[%clk 0:00:40.6]} 31... Kg8 {[%clk
0:00:44.9]} 32. Qf6 {[%clk 0:00:38.9]} 32... Qb8 {[%clk 0:00:30.6]} 33. Ne5
{[%clk 0:00:36.5]} 33... Qc7 {[%clk 0:00:14.7]} 34. Qg5+ {[%clk 0:00:28.2]}
34... Kf8 {[%clk 0:00:13.5]} 35. Qh6+ {[%clk 0:00:19.5]} 35... Kg8 {[%clk
0:00:12.1]} 36. Qg5+ {[%clk 0:00:15.6]} 36... Kf8 {[%clk 0:00:11.6]} 37. Bf3
{[%clk 0:00:16.1]} 37... Bc2 {[%clk 0:00:09.1]} 38. Rc1 {[%clk 0:00:08.6]} 38...
Bxc1 {[%clk 0:00:08.1]} 39. Rxc1 {[%clk 0:00:09.5]} 39... Be4 {[%clk 0:00:07.2]}
40. Rxc7 {[%clk 0:00:08.3]} 40... Bxf3+ {[%clk 0:00:07.4]} 41. Nxf3 {[%clk
0:00:09.2]} 41... f6 {[%clk 0:00:05.9]} 42. Qxf6+ {[%clk 0:00:09.1]} 42... Kg8
{[%clk 0:00:06.2]} 43. Qxd8+ {[%clk 0:00:09.1]} 43... Kh7 {[%clk 0:00:07.1]} 44.
Qh4+ {[%clk 0:00:08.7]} 44... Kg6 {[%clk 0:00:08]} 45. Qg5+ {[%clk 0:00:08.7]}
45... Kf7 {[%clk 0:00:07.7]} 46. d8=Q# {[%clk 0:00:08.9]} 1-0